fUST/lending_fUST_20250422
["ID","MTS","AMOUNT","RATE_DAILY","PERIOD"]
[358635937,1745325049687,-500.0,0.00022465,2]
[358635938,1745325049696,-500.0,0.00022465,2]
[358635939,1745325049706,-500.0,0.00022465,2]
[358635940,1745325049716,-500.0,0.00022465,2]
[358635941,1745325049726,-500.0,0.00022465,2]
[358635942,1745325049735,-500.0,0.00022465,2]
[358635943,1745325049746,-500.0,0.00022465,2]
[358635944,1745325049756,-573.99,0.00022465,2]
[358635945,1745325049765,-1519.62,0.00022465,2]
[358635946,1745325049775,-3238.33,0.00022465,2]
[358635947,1745325049784,-500.0,0.00022465,2]
[358635948,1745325049795,-500.0,0.00022465,2]
[358635949,1745325049805,-500.0,0.00022465,2]
[358635950,1745325049815,-500.0,0.00022465,2]
[358635951,1745325049825,-500.0,0.00022465,2]
[358635952,1745325049835,-500.0,0.00022465,2]
[358635953,1745325049845,-592.05,0.00022465,2]
[358635954,1745325049855,-500.0,0.00022465,2]
[358635955,1745325049865,-500.0,0.00022465,2]
[358635956,1745325049874,-505.84,0.00022465,2]
[358635957,1745325049884,-3110.89,0.00022465,2]
[358635958,1745325049894,-500.0,0.00022465,2]
[358635959,1745325049904,-500.0,0.00022465,2]
[358635960,1745325049914,-500.0,0.00022465,2]
[358635961,1745325049924,-568.12573,0.00022465,7]
[358635962,1745325049935,-500.0,0.00022465,2]
[358635963,1745325049945,-568.12573,0.00022465,7]
[358635964,1745325049956,-307.47999198,0.00022465,2]
[358635965,1745325049966,-500.0,0.00022465,2]
[358635966,1745325049976,-710.02,0.00022465,2]
[358635967,1745325049986,-500.0,0.00022465,2]
[358635968,1745325049996,-10413.81,0.00022465,2]
[358635969,1745325050006,-500.0,0.00022465,2]
[358635970,1745325050016,-500.0,0.00022465,2]
[358635971,1745325050026,-500.0,0.00022465,2]
[358635972,1745325050036,-500.0,0.00022465,2]
[358635973,1745325050046,-623.22,0.00022465,2]
[358635974,1745325050061,-500.0,0.00022465,2]
[358635975,1745325050071,-500.0,0.00022465,2]
[358635976,1745325050081,-500.0,0.00022465,2]
[358635977,1745325050090,-500.0,0.00022465,2]
[358635978,1745325050100,-500.0,0.00022465,2]
[358635979,1745325050110,-500.0,0.00022465,2]
[358635980,1745325050119,-512.99,0.00022465,2]
[358635981,1745325050129,-701.71,0.00022465,2]
[358635982,1745325050139,-500.0,0.00022465,2]
[358635983,1745325050149,-500.0,0.00022465,2]
[358635984,1745325050160,-500.0,0.00022465,2]
[358635985,1745325050170,-500.0,0.00022465,2]
[358635986,1745325050180,-500.0,0.00022465,2]
[358635987,1745325050189,-500.0,0.00022465,2]
[358635988,1745325050199,-1747.23,0.00022465,2]
[358635989,1745325050208,-500.0,0.00022465,2]
[358635990,1745325050218,-500.0,0.00022465,2]
[358635991,1745325050227,-500.0,0.00022465,2]
[358635992,1745325050237,-500.0,0.00022465,2]
[358635993,1745325050246,-614.77,0.00022465,2]
[358635994,1745325050256,-500.0,0.00022465,2]
[358635995,1745325050266,-6005.19,0.00022465,2]
[358635996,1745325050276,-500.0,0.00022465,2]
[358635997,1745325050286,-500.0,0.00022465,2]
[358635998,1745325050296,-500.0,0.00022465,2]
[358635999,1745325050306,-679.36,0.00022465,2]
[358636000,1745325050316,-500.0,0.00022465,2]
[358636001,1745325050325,-151.0,0.00022465,7]
[358636002,1745325050334,-3154.6,0.00022465,2]
[358636003,1745325050344,-500.0,0.00022465,2]
[358636004,1745325050354,-500.0,0.00022465,2]
[358636005,1745325050364,-500.0,0.00022465,2]
[358636006,1745325050374,-1777.31,0.00022465,2]
[358636007,1745325050384,-528.45935928,0.00022465,2]
[358636008,1745325050393,-151.0,0.00022465,7]
[358636009,1745325050403,-500.0,0.00022465,2]
[358636010,1745325050413,-505.82877217,0.00022465,2]
[358636011,1745325050423,-500.0,0.00022465,2]
[358636012,1745325050433,-936.86,0.00022465,2]
[358636013,1745325050442,-500.0,0.00022465,2]
[358636014,1745325050452,-757.75,0.00022465,2]
[358636015,1745325050462,-625.73,0.00022465,2]
[358636016,1745325050472,-500.0,0.00022465,2]
[358636017,1745325050481,-541.14,0.00022465,2]
[358636018,1745325050490,-501.31819858,0.00022465,2]
[358636019,1745325050500,-500.0,0.00022465,2]
[358636020,1745325050510,-500.0,0.00022465,2]
[358636021,1745325050520,-500.0,0.00022465,2]
[358636022,1745325050530,-500.0,0.00022465,2]
[358636023,1745325050539,-500.0,0.00022465,2]
[358636024,1745325050549,-500.0,0.00022465,2]
[358636025,1745325050559,-500.0,0.00022465,2]
[358636026,1745325050569,-500.0,0.00022465,2]
[358636027,1745325050578,-959.9,0.00022465,2]
[358636028,1745325050588,-500.0,0.00022465,2]
[358636029,1745325050598,-500.0,0.00022465,2]
[358636030,1745325050607,-500.0,0.00022465,2]
[358636031,1745325050616,-1932.02,0.00022465,2]
[358636032,1745325050626,-500.0,0.00022465,2]
[358636033,1745325050636,-515.49691352,0.00022465,2]
[358636034,1745325050647,-607.57,0.00022465,2]
[358636035,1745325050657,-723.74,0.00022465,2]
[358636036,1745325050667,-764.74,0.00022465,2]
[358636037,1745325050677,-500.0,0.00022465,2]
[358636038,1745325050686,-544.62,0.00022465,2]
[358636039,1745325050696,-500.0,0.00022465,2]
[358636040,1745325050706,-500.0,0.00022465,2]
[358636041,1745325050716,-509.00604722,0.00022465,2]
[358636042,1745325050725,-500.0,0.00022465,2]
[358636043,1745325050734,-500.0,0.00022465,2]
[358636044,1745325050744,-151.32188304,0.00022465,2]
[358636045,1745325050753,-607.88,0.00022465,2]
[358636046,1745325050762,-500.0,0.00022465,2]
[358636047,1745325050772,-626.44,0.00022465,2]
[358636048,1745325050781,-4149.45,0.00022465,2]
[358636049,1745325050791,-500.0,0.00022465,2]
[358636050,1745325050801,-500.0,0.00022465,2]
[358636051,1745325050810,-500.0,0.00022465,2]
[358636052,1745325050819,-500.0,0.00022466,2]
[358636053,1745325050828,-500.0,0.00022466,2]
[358636054,1745325050839,-224.51952508,0.00022466,2]
[358636055,1745325050848,-500.0,0.00022466,2]
[358636056,1745325050858,-151.0,0.00022466,2]
[358636057,1745325050868,-500.0,0.00022477,2]
[358636058,1745325050877,-500.0,0.00022527,2]
[358636059,1745325050887,-500.0,0.00022527,2]
[358636060,1745325050897,-500.0,0.00022527,2]
[358636061,1745325050907,-500.0,0.00022527,2]
[358636062,1745325050916,-500.0,0.00022527,2]
[358636063,1745325050925,-500.0,0.00022527,2]
[358636064,1745325050934,-500.0,0.00022527,2]
[358636065,1745325050944,-300.0,0.00022527,2]
[358636066,1745325050954,-500.42104001,0.00022527,2]
[358636067,1745325050964,-500.0,0.00022527,2]
[358636068,1745325050973,-500.0,0.00022527,2]
[358636069,1745325050983,-500.0,0.00022527,2]
[358636070,1745325050993,-288.05475448,0.00022537,2]
[358636071,1745325051002,-500.0,0.00022561,2]
[358636072,1745325051012,-233.43895437,0.00022561,2]
[358636073,1745325051022,-180.15493324,0.00022571,2]
[358636074,1745325051032,-207.4,0.00022609,2]
[358636075,1745325051043,-160.0,0.00022713,2]
[358636076,1745325051055,-729.16666667,0.00022713,2]
[358636077,1745325051065,-420.73667954,0.00022713,2]
[358636078,1745325051075,-160.0,0.00022713,2]
[358636079,1745325051085,-160.0,0.00022713,2]
[358636080,1745325051096,-160.0,0.00022713,2]
[358636081,1745325051106,-729.16666667,0.00022738,3]
[358636082,1745325051116,-151.0,0.00022738,7]
[358636083,1745325051126,-741.75,0.00022739,2]
[358636084,1745325051137,-500.0,0.00022739,2]
[358636085,1745325051147,-500.0,0.00022739,2]
[358636086,1745325051156,-635.66,0.00022739,2]
[358636087,1745325051167,-500.0,0.00022739,2]
[358636088,1745325051176,-500.0,0.00022739,2]
[358636089,1745325051186,-500.0,0.00022739,2]
[358636090,1745325051196,-515.86,0.00022739,2]
[358636091,1745325051206,-500.0,0.00022739,2]
[358636092,1745325051215,-495.2907828,0.00022739,2]
[358636093,1745325051226,-500.0,0.00022739,2]
[358636094,1745325051236,-500.0,0.00022739,2]
[358636095,1745325051246,-500.0,0.00022739,2]
[358636096,1745325051257,-500.0,0.00022739,2]
[358636097,1745325051267,-500.0,0.00022739,2]
[358636098,1745325051276,-595.62,0.00022739,2]
[358636099,1745325051286,-659.9,0.00022739,2]
[358636100,1745325051296,-500.0,0.00022739,2]
[358636101,1745325051306,-500.0,0.00022739,2]
[358636102,1745325051316,-500.0,0.00022739,2]
[358636103,1745325051326,-500.0,0.00022739,2]
[358636104,1745325051337,-500.0,0.00022739,2]
[358636105,1745325051347,-500.0,0.00022739,2]
[358636106,1745325051357,-500.0,0.00022739,2]
[358636107,1745325051367,-500.0,0.00022739,2]
[358636108,1745325051377,-500.0,0.00022739,2]
[358636109,1745325051390,-500.0,0.00022739,2]
[358636110,1745325051401,-500.0,0.00022739,2]
[358636111,1745325051411,-586.53,0.00022739,2]
[358636112,1745325051421,-742.33,0.00022739,2]
[358636113,1745325051431,-682.4,0.00022739,2]
[358636114,1745325051441,-500.0,0.00022739,2]
[358636115,1745325051451,-500.0,0.00022739,2]
[358636116,1745325051461,-500.0,0.00022739,2]
[358636117,1745325051470,-500.0,0.00022739,2]
[358636118,1745325051481,-1067.65,0.00022739,2]
[358636119,1745325051491,-632.66703073,0.00022739,2]
[358636120,1745325051500,-1132.828869,0.00022739,2]
[358636121,1745325051510,-500.0,0.00022739,2]
[358636122,1745325051520,-1132.828869,0.00022739,2]
[358636123,1745325051530,-619.4,0.00022739,2]
[358636124,1745325051669,-500.0,0.00022739,2]
[358636125,1745325051705,-500.0,0.00022739,2]
[358636126,1745325051715,-500.0,0.00022739,2]
[358636127,1745325051725,-500.0,0.00022739,2]
[358636128,1745325051735,-500.0,0.00022739,2]
[358636129,1745325051745,-500.0,0.00022739,2]
[358636130,1745325051755,-500.0,0.00022739,2]
[358636131,1745325051765,-500.0,0.00022739,2]
[358636132,1745325051775,-542.99934062,0.00022739,2]
[358636133,1745325051785,-573.99,0.00022739,2]
[358636134,1745325051795,-1519.62,0.00022739,2]
[358636135,1745325051805,-3238.33,0.00022739,2]
[358636136,1745325051814,-500.0,0.00022739,2]
[358636137,1745325051823,-500.0,0.00022739,2]
[358636138,1745325051833,-500.0,0.00022739,2]
[358636139,1745325051843,-500.0,0.00022739,2]
[358636140,1745325051852,-500.0,0.00022739,2]
[358636141,1745325051862,-592.05,0.00022739,2]
[358636142,1745325051871,-500.0,0.00022739,2]
[358636143,1745325051881,-500.0,0.00022739,2]
[358636144,1745325051891,-3110.89,0.00022739,2]
[358636145,1745325051901,-500.0,0.00022739,2]
[358636146,1745325051911,-500.0,0.00022739,2]
[358636147,1745325051920,-500.0,0.00022739,2]
[358636148,1745325051930,-568.12573,0.00022739,7]
[358636149,1745325051940,-500.0,0.00022739,2]
[358636150,1745325051950,-568.12573,0.00022739,7]
[358636151,1745325051960,-500.0,0.00022739,2]
[358636152,1745325051969,-710.02,0.00022739,2]
[358636153,1745325051979,-500.0,0.00022739,2]
[358636154,1745325051990,-151.0,0.00022739,7]
[358636155,1745325051999,-10413.81,0.00022739,2]
[358636156,1745325052010,-500.0,0.00022739,2]
[358636157,1745325052020,-500.0,0.00022739,2]
[358636158,1745325052030,-500.0,0.00022739,2]
[358636159,1745325052040,-623.22,0.00022739,2]
[358636160,1745325052052,-500.0,0.00022739,2]
[358636161,1745325052064,-500.0,0.00022739,2]
[358636162,1745325052074,-500.0,0.00022739,2]
[358636163,1745325052083,-500.0,0.00022739,2]
[358636164,1745325052094,-346.95618113,0.00022739,2]
[358636165,1745325052105,-500.0,0.00022739,2]
[358636166,1745325052115,-512.99,0.00022739,2]
[358636167,1745325052125,-701.71,0.00022739,2]
[358636168,1745325052137,-500.0,0.00022739,2]
[358636169,1745325052147,-500.0,0.00022739,2]
[358636170,1745325052157,-500.0,0.00022739,2]
[358636171,1745325052167,-500.0,0.00022739,2]
[358636172,1745325052176,-500.0,0.00022739,2]
[358636173,1745325052186,-1747.23,0.00022739,2]
[358636174,1745325052196,-500.0,0.00022739,2]
[358636175,1745325052205,-500.0,0.00022739,2]
[358636176,1745325052215,-614.77,0.00022739,2]
[358636177,1745325052226,-500.0,0.00022739,2]
[358636178,1745325052236,-6005.19,0.00022739,2]
[358636179,1745325052246,-500.0,0.00022739,2]
[358636180,1745325052257,-500.0,0.00022739,2]
[358636181,1745325052267,-500.0,0.00022739,2]
[358636182,1745325052277,-679.36,0.00022739,2]
[358636183,1745325052288,-500.0,0.00022739,2]
[358636184,1745325052299,-151.0,0.00022739,7]
[358636185,1745325052308,-3154.6,0.00022739,2]
[358636186,1745325052318,-500.0,0.00022739,2]
[358636187,1745325052328,-380.31634041,0.00022739,2]
[358636188,1745325052337,-1777.31,0.00022739,2]
[358636189,1745325052348,-151.0,0.00022739,7]
[358636190,1745325052358,-500.0,0.00022739,2]
[358636191,1745325052368,-936.86,0.00022739,2]
[358636192,1745325052378,-500.0,0.00022739,2]
[358636193,1745325052387,-757.75,0.00022739,2]
[358636194,1745325052397,-625.73,0.00022739,2]
[358636195,1745325052407,-541.14,0.00022739,2]
[358636196,1745325052417,-486.34626933,0.00022739,2]
[358636197,1745325052426,-500.0,0.00022739,2]
[358636198,1745325052436,-500.0,0.00022739,2]
[358636199,1745325052446,-500.0,0.00022739,2]
[358636200,1745325052455,-500.0,0.00022739,2]
[358636201,1745325052465,-500.0,0.00022739,2]
[358636202,1745325052474,-959.9,0.00022739,2]
[358636203,1745325052484,-500.0,0.00022739,2]
[358636204,1745325052494,-1932.02,0.00022739,2]
[358636205,1745325052504,-500.0,0.00022739,2]
[358636206,1745325052513,-607.57,0.00022739,2]
[358636207,1745325052522,-723.74,0.00022739,2]
[358636208,1745325052532,-764.74,0.00022739,2]
[358636209,1745325052543,-544.62,0.00022739,2]
[358636210,1745325052552,-500.0,0.00022739,2]
[358636211,1745325052562,-607.88,0.00022739,2]
[358636212,1745325052572,-500.0,0.00022739,2]
[358636213,1745325052582,-4149.45,0.00022739,2]
[358636214,1745325052591,-500.0,0.00022739,2]
[358636215,1745325052601,-500.0,0.00022739,2]
[358636216,1745325052611,-151.0,0.00022759,7]
[358636217,1745325052620,-288.05475449,0.00022775,2]
[358636218,1745325052630,-1506.82710805,0.000229,4]
[358636219,1745325052640,-420.73667954,0.00023,3]
[358636220,1745325052650,-160.0,0.00023,3]
[358636221,1745325052659,-741.75,0.00023013,2]
[358636222,1745325052669,-500.0,0.00023013,2]
[358636223,1745325052679,-500.0,0.00023013,2]
[358636224,1745325052688,-635.66,0.00023013,2]
[358636225,1745325052698,-500.0,0.00023013,2]
[358636226,1745325052707,-500.0,0.00023013,2]
[358636227,1745325052717,-500.0,0.00023013,2]
[358636228,1745325052726,-515.86,0.00023013,2]
[358636229,1745325052736,-500.0,0.00023013,2]
[358636230,1745325052745,-500.0,0.00023013,2]
[358636231,1745325052755,-500.0,0.00023013,2]
[358636232,1745325052764,-500.0,0.00023013,2]
[358636233,1745325052774,-423.32,0.00023013,2]
[358636234,1745325052783,-500.0,0.00023013,2]
[358636235,1745325052794,-659.9,0.00023013,2]
[358636236,1745325052804,-500.0,0.00023013,2]
[358636237,1745325052814,-500.0,0.00023013,2]
[358636238,1745325052824,-151.0,0.00023013,7]
[358636239,1745325052834,-500.0,0.00023013,2]
[358636240,1745325052845,-500.0,0.00023013,2]
[358636241,1745325052856,-500.0,0.00023013,2]
[358636242,1745325052866,-500.0,0.00023013,2]
[358636243,1745325052876,-500.0,0.00023013,2]
[358636244,1745325052885,-151.0,0.00023013,7]
[358636245,1745325052895,-151.0,0.00023013,7]
[358636246,1745325052904,-500.0,0.00023013,2]
[358636247,1745325052914,-500.0,0.00023013,2]
[358636248,1745325052924,-500.0,0.00023013,2]
[358636249,1745325052934,-252.98,0.00023013,2]
[358636250,1745325052945,-586.53,0.00023013,2]
[358636251,1745325052955,-742.33,0.00023013,2]
[358636252,1745325052964,-682.4,0.00023013,2]
[358636253,1745325052974,-500.0,0.00023013,2]
[358636254,1745325052984,-500.0,0.00023013,2]
[358636255,1745325052994,-500.0,0.00023013,2]
[358636256,1745325053004,-500.0,0.00023013,2]
[358636257,1745325053013,-151.0,0.00023013,7]
[358636258,1745325053023,-1067.65,0.00023013,2]
[358636259,1745325053033,-1132.828869,0.00023013,2]
[358636260,1745325053043,-500.0,0.00023013,2]
[358636261,1745325053056,-1132.828869,0.00023013,2]
[358636262,1745325053066,-619.4,0.00023013,2]
[358636263,1745325053076,-500.0,0.00023013,2]
[358636264,1745325053086,-500.0,0.00023013,2]
[358636265,1745325053097,-500.0,0.00023013,2]
[358636266,1745325053107,-500.0,0.00023013,2]
[358636267,1745325053116,-500.0,0.00023013,2]
[358636268,1745325053126,-500.0,0.00023013,2]
[358636269,1745325053138,-500.0,0.00023013,2]
[358636270,1745325053148,-500.0,0.00023013,2]
[358636271,1745325053157,-573.99,0.00023013,2]
[358636272,1745325053167,-1519.62,0.00023013,2]
[358636273,1745325053177,-3238.33,0.00023013,2]
[358636274,1745325053186,-500.0,0.00023013,2]
[358636275,1745325053196,-496.79961516,0.00023013,2]
[358636276,1745325053205,-500.0,0.00023013,2]
[358636277,1745325053215,-500.0,0.00023013,2]
[358636278,1745325053224,-500.0,0.00023013,2]
[358636279,1745325053235,-592.05,0.00023013,2]
[358636280,1745325053245,-500.0,0.00023013,2]
[358636281,1745325053254,-500.0,0.00023013,2]
[358636282,1745325053264,-3110.89,0.00023013,2]
[358636283,1745325053274,-500.0,0.00023013,2]
[358636284,1745325053283,-500.0,0.00023013,2]
[358636285,1745325053293,-500.0,0.00023013,2]
[358636286,1745325053303,-568.12573,0.00023013,7]
[358636287,1745325053313,-500.0,0.00023013,2]
[358636288,1745325053323,-568.12573,0.00023013,7]
[358636289,1745325053333,-500.0,0.00023013,2]
[358636290,1745325053344,-710.02,0.00023013,2]
[358636291,1745325053354,-500.0,0.00023013,2]
[358636292,1745325053365,-10413.81,0.00023013,2]
[358636293,1745325053376,-395.16758141,0.00023013,2]
[358636294,1745325053386,-500.0,0.00023013,2]
[358636295,1745325053397,-500.0,0.00023013,2]
[358636296,1745325053408,-623.22,0.00023013,2]
[358636297,1745325053419,-500.0,0.00023013,2]
[358636298,1745325053430,-500.0,0.00023013,2]
[358636299,1745325053441,-500.0,0.00023013,2]
[358636300,1745325053453,-500.0,0.00023013,2]
[358636301,1745325053464,-500.0,0.00023013,2]
[358636302,1745325053476,-512.99,0.00023013,2]
[358636303,1745325053487,-701.71,0.00023013,2]
[358636304,1745325053498,-500.0,0.00023013,2]
[358636305,1745325053509,-500.0,0.00023013,2]
[358636306,1745325053520,-500.0,0.00023013,2]
[358636307,1745325053531,-1747.23,0.00023013,2]
[358636308,1745325053548,-500.0,0.00023013,2]
[358636309,1745325053558,-500.0,0.00023013,2]
[358636310,1745325053573,-614.77,0.00023013,2]
[358636311,1745325053584,-500.0,0.00023013,2]
[358636312,1745325053595,-6005.19,0.00023013,2]
[358636313,1745325053606,-500.0,0.00023013,2]
[358636314,1745325053616,-500.0,0.00023013,2]
[358636315,1745325053627,-500.0,0.00023013,2]
[358636316,1745325053637,-679.36,0.00023013,2]
[358636317,1745325053647,-500.0,0.00023013,2]
[358636318,1745325053658,-3154.6,0.00023013,2]
[358636319,1745325053668,-151.0,0.00023013,7]
[358636320,1745325053678,-463.34664367,0.00023013,2]
[358636321,1745325053689,-1777.31,0.00023013,2]
[358636322,1745325053699,-151.0,0.00023013,7]
[358636323,1745325053709,-500.0,0.00023013,2]
[358636324,1745325053719,-936.86,0.00023013,2]
[358636325,1745325053728,-757.75,0.00023013,2]
[358636326,1745325053738,-625.73,0.00023013,2]
[358636327,1745325053748,-541.14,0.00023013,2]
[358636328,1745325053757,-500.0,0.00023013,2]
[358636329,1745325053767,-500.0,0.00023013,2]
[358636330,1745325053777,-500.0,0.00023013,2]
[358636331,1745325053787,-500.0,0.00023013,2]
[358636332,1745325053801,-191.5905361,0.00023013,2]
[358636333,1745325053812,-959.9,0.00023013,2]
[358636334,1745325053822,-500.0,0.00023013,2]
[358636335,1745325053832,-1932.02,0.00023013,2]
[358636336,1745325053842,-500.0,0.00023013,2]
[358636337,1745325053852,-607.57,0.00023013,2]
[358636338,1745325053863,-723.74,0.00023013,2]
[358636339,1745325053873,-764.74,0.00023013,2]
[358636340,1745325053883,-544.62,0.00023013,2]
[358636341,1745325053894,-500.0,0.00023013,2]
[358636342,1745325053904,-607.88,0.00023013,2]
[358636343,1745325053914,-500.0,0.00023013,2]
[358636344,1745325053924,-4149.45,0.00023013,2]
[358636345,1745325053934,-500.0,0.00023013,2]
[358636346,1745325053944,-500.0,0.00023014,2]
[358636347,1745325053954,-151.53764303,0.00023014,2]
[358636348,1745325053964,-151.0,0.00023014,2]
[358636349,1745325053974,-151.0,0.00023014,2]
[358636350,1745325053984,-7039.25878028,0.00023054,2]
[358636351,1745325053994,-1000.0,0.00023189,5]
[358636352,1745325054003,-151.0,0.00023287,7]
[358636353,1745325054013,-151.0,0.00023287,7]
[358636354,1745325054022,-151.0,0.00023287,7]
[358636355,1745325054032,-151.0,0.00023287,7]
[358636356,1745325054042,-160.12071,0.00023287,7]
[358636357,1745325054056,-151.0,0.00023287,7]
[358636358,1745325054066,-260.20223449,0.00023287,7]
[358636359,1745325054075,-155.899053,0.00023287,7]
[358636360,1745325054086,-151.0,0.00023287,7]
[358636361,1745325054095,-216.109664,0.00023287,7]
[358636362,1745325054106,-151.0,0.00023287,7]
[358636363,1745325054116,-741.75,0.00023287,2]
[358636364,1745325054126,-582.69967538,0.00023287,2]
[358636365,1745325054137,-282.28074123,0.00023287,7]
[358636366,1745325054147,-500.0,0.00023287,2]
[358636367,1745325054157,-635.66,0.00023287,2]
[358636368,1745325054166,-500.0,0.00023287,2]
[358636369,1745325054176,-500.0,0.00023287,2]
[358636370,1745325054187,-500.0,0.00023287,2]
[358636371,1745325054197,-515.86,0.00023287,2]
[358636372,1745325054206,-500.0,0.00023287,2]
[358636373,1745325054217,-500.0,0.00023287,2]
[358636374,1745325054231,-500.0,0.00023287,2]
[358636375,1745325054241,-500.0,0.00023287,2]
[358636376,1745325054251,-500.0,0.00023287,2]
[358636377,1745325054260,-659.9,0.00023287,2]
[358636378,1745325054270,-412.18666766,0.00023287,2]
[358636379,1745325054279,-344.84256069,0.00023287,2]
[358636380,1745325054290,-500.0,0.00023287,2]
[358636381,1745325054299,-500.0,0.00023287,2]
[358636382,1745325054310,-500.0,0.00023287,2]
[358636383,1745325054319,-462.17080485,0.00023287,2]
[358636384,1745325054330,-394.077219,0.00023287,2]
[358636385,1745325054340,-500.0,0.00023287,2]
[358636386,1745325054478,-500.0,0.00023287,2]
[358636387,1745325054489,-151.0,0.00023287,7]
[358636388,1745325054499,-500.0,0.00023287,2]
[358636389,1745325054509,-586.53,0.00023287,2]
[358636390,1745325054519,-742.33,0.00023287,2]
[358636391,1745325054529,-682.4,0.00023287,2]
[358636392,1745325054539,-500.0,0.00023287,2]
[358636393,1745325054548,-177.15,0.00023287,2]
[358636394,1745325054558,-500.0,0.00023287,2]
[358636395,1745325054568,-1067.65,0.00023287,2]
[358636396,1745325054577,-500.0,0.00023287,2]
[358636397,1745325054587,-1132.828869,0.00023287,2]
[358636398,1745325054597,-1132.828869,0.00023287,2]
[358636399,1745325054607,-619.4,0.00023287,2]
[358636400,1745325054616,-500.0,0.00023287,2]
[358636401,1745325054626,-541.04,0.00023287,2]
[358636402,1745325054637,-500.0,0.00023287,2]
[358636403,1745325054646,-500.0,0.00023287,2]
[358636404,1745325054658,-500.0,0.00023287,2]
[358636405,1745325054669,-500.0,0.00023287,2]
[358636406,1745325054680,-500.0,0.00023287,2]
[358636407,1745325054690,-500.0,0.00023287,2]
[358636408,1745325054701,-573.99,0.00023287,2]
[358636409,1745325054713,-1519.62,0.00023287,2]
[358636410,1745325054723,-3238.33,0.00023287,2]
[358636411,1745325054734,-500.0,0.00023287,2]
[358636412,1745325054744,-500.0,0.00023287,2]
[358636413,1745325054755,-500.0,0.00023287,2]
[358636414,1745325054765,-500.0,0.00023287,2]
[358636415,1745325054776,-592.05,0.00023287,2]
[358636416,1745325054786,-384.20423523,0.00023287,2]
[358636417,1745325054797,-500.0,0.00023287,2]
[358636418,1745325054807,-3110.89,0.00023287,2]
[358636419,1745325054817,-500.0,0.00023287,2]
[358636420,1745325054827,-500.0,0.00023287,2]
[358636421,1745325054837,-500.0,0.00023287,2]
[358636422,1745325054846,-568.12573,0.00023287,7]
[358636423,1745325054856,-500.0,0.00023287,2]
[358636424,1745325054867,-568.12573,0.00023287,7]
[358636425,1745325054876,-500.0,0.00023287,2]
[358636426,1745325054886,-710.02,0.00023287,2]
[358636427,1745325054896,-500.0,0.00023287,2]
[358636428,1745325054906,-151.0,0.00023287,7]
[358636429,1745325054916,-10413.81,0.00023287,2]
[358636430,1745325054926,-195.28,0.00023287,2]
[358636431,1745325054936,-623.22,0.00023287,2]
[358636432,1745325054946,-500.0,0.00023287,2]
[358636433,1745325054956,-500.0,0.00023287,2]
[358636434,1745325054966,-500.0,0.00023287,2]
[358636435,1745325054977,-500.0,0.00023287,2]
[358636436,1745325054986,-500.0,0.00023287,2]